[Event "39th Muensterland Open 2022"]
[Site "Muenster"]
[Date "2022.10.02"]
[Round "1.9"]
[White "Schuett, Norbert"]
[Black "Sandkamp, Ralph"]
[Result "0-1"]
[ECO "A47"]
[WhiteElo "1791"]
[BlackElo "2241"]
[Annotator "TA"]
[PlyCount "72"]
[EventDate "2022.10.01"]
[EventType "swiss"]
[EventCountry "GER"]
[SourceTitle "playchess.com"]
[Source "ChessBase"]
[SourceQuality "1"]
[TimeControl "40/5400+30:1800+30"]

{[%evp 15,72,0,0,0,0,-4,-4,-2,-19,0,25,20,39,41,38,0,0,0,0,0,43,22,27,-18,6,2,5,0,0,0,0,0,11,-18,-15,-27,37,25,37,-282,-281,-2384,-2227,-2184,-2107,-29987,-29988,-29988,-29989,-29988,-1786,-1579,-1556,-1384,-979,-1578,-1566,-1447,-1412]} 1. d4 {[%emt 0:00:05]} Nf6 {[%emt 0:00:19]} 2. Bf4 {[%emt 0:00:32]} g6 {[%emt 0:01:01]} 3. e3 {[%emt 0:01:22]} Bg7 {[%emt 0:00:22]} 4. Nf3 {[%emt 0:01:04]} O-O {[%emt 0:00:28]} 5. Be2 {[%emt 0:01:17]} d6 {[%emt 0:00:20]} 6. O-O {[%emt 0:02:02]} Nbd7 {[%emt 0:00:30]} 7. c3 {[%emt 0:05:40]} b6 {[%emt 0:00:23]} 8. Nbd2 {[%emt 0:07:09]} Bb7 {[%emt 0:02:39]} 9. a4 {[%emt 0:06:56] A47: 1 d4 Nf6 2 Nf3 b6: Torre, London and Colle Systems.} a6 {[%emt 0:02:14]} 10. Qc2 {[%emt 0:04:07] [#]} Nh5 $146 {[%emt 0:05:34]} ({Predecessor:} 10... c5 11. h3 Rc8 12. Rfe1 Re8 13. Qb3 e5 14. Bg5 e4 15. Nh2 h6 16. Bh4 d5 {0-1 (53) Kotlar,A (1899)-Strauss,D (1918) Germany 2015}) 11. Bg5 {[%emt 0:01:29] The position is equal.} h6 {[%emt 0:00:47]} 12. Bh4 {[%emt 0:00:11]} f5 {[%emt 0:01:29]} 13. Ne1 {[%emt 0:11:28]} Ndf6 {[%emt 0:05:39]} 14. f3 {[%emt 0:08:41] g4 is the strong threat.} Qd7 {[%emt 0:07:40]} 15. c4 {[%emt 0:10:03]} c5 {[%emt 0:03:32]} 16. d5 {[%emt 0:05:00][%cal Og2g4] Inhibits Qe6.} g5 {[%emt 0:01:20]} 17. Bf2 {[%emt 0:00:49]} f4 {[%emt 0:01:42]} 18. Bd3 {[%emt 0:04:25]} e6 {[%emt 0:02:57] Inhibits Bf5.} 19. e4 {[%emt 0:04:22]} (19. dxe6 {with more complications.} Qxe6 20. Bf5 Qe7 21. exf4 Nxf4 22. Nd3) 19... a5 {[%emt 0:04:04]} (19... g4 $5 {[%cal Rg4g3]}) 20. Qb3 {[%emt 0:01:22]} Qc7 {[%emt 0:01:11]} 21. Nc2 {[%emt 0:00:55][%cal Be1c2,Bc2a3,Ba3b5][%mdl 32]} Nd7 {[%emt 0:00:33]} 22. Na3 {[%emt 0:03:19]} Ne5 {[%emt 0:02:55]} 23. Nb5 {[%emt 0:02:05]} Qd8 {[%emt 0:00:25]} 24. Bc2 {[%emt 0:03:13]} Bc8 {[%emt 0:01:33]} 25. Rad1 {[%emt 0:03:23]} exd5 {[%emt 0:02:51]} (25... Rb8 $11) 26. exd5 $14 {[%emt 0:00:34]} g4 {[%emt 0:00:31][%cal Bg5g4,Bg4g3][%mdl 32] [#] And now ...g3 would win.} 27. Be4 $2 {[%emt 0:02:04][%mdl 8192] This costs White the game.} (27. Ne4 $14 {stays ahead.}) 27... g3 $19 {[%emt 0:01:24] Hoping for ...Qh4.} 28. Be1 $2 {[%emt 0:02:58]} ({Not} 28. hxg3 $2 fxg3 29. Be3 Qh4 $19) (28. Kh1 gxf2 29. Rxf2) 28... Qh4 {[%emt 0:00:21][%csl Gg3][%cal Rh4h2]} 29. h3 {[%emt 0:04:48] [#]} Bxh3 $1 {[%emt 0:00:15][%mdl 512]} 30. gxh3 {[%emt 0:01:07]} (30. Rf2 gxf2+) 30... Qxh3 {[%emt 0:00:10][%csl Gg3][%cal Rh3h2]} 31. Rf2 {[%emt 0:00:12]} gxf2+ {[%emt 0:00:19]} 32. Bxf2 {[%emt 0:00:30]} Ng3 {[%emt 0:02:06]} (32... Kh8 $142 33. Qa3 Bf6 34. Bf5 Rg8+ 35. Bg4 Rxg4+ 36. fxg4 f3 37. Qxf3 Nxf3+ 38. Nxf3 Nf4 39. Nxd6 Qg2#) 33. Bxg3 {[%emt 0:00:40] Black is clearly winning.} fxg3 {[%emt 0:00:22]} 34. Nf1 {[%emt 0:01:11] Inhibits Qh2+.} Ng4 {[%emt 0:02:00][%cal Be5g4,Bg4f2,Bf2d1][%mdl 32] ( -> ...g2)} 35. Qc2 {[%emt 0:00:35] Inhibits g2.} Nf2 {[%emt 0:00:17][%csl Gf2][%cal Rh3h1]} 36. f4 {[%emt 0:01:27]} Nxd1 {[%emt 0:01:11] Weighted Error Value: White=0.70/Black=0.51} 0-1

[Event "39th Muensterland Open 2022"]
[Site "Muenster"]
[Date "2022.10.02"]
[Round "1.10"]
[White "Schmitzer, Klaus"]
[Black "Klein, Gernot"]
[Result "1-0"]
[ECO "B43"]
[WhiteElo "2241"]
[BlackElo "1824"]
[Annotator "TA"]
[PlyCount "83"]
[EventDate "2022.10.01"]
[EventType "swiss"]
[EventCountry "GER"]
[SourceTitle "playchess.com"]
[Source "ChessBase"]
[SourceQuality "1"]
[TimeControl "40/5400+30:1800+30"]

{[%evp 13,83,15,24,5,27,9,31,31,43,14,63,16,74,58,65,0,217,210,231,208,267,194,201,186,187,175,167,175,179,99,157,157,235,223,275,273,445,443,463,455,438,454,444,312,278,276,289,249,376,376,491,483,989,497,3025,3007,2970,3088,2948,2329,3037,2986,2985,2988,3403,3411,29981,3129,3692,3648,29990,29991]} 1. e4 {[%emt 0:00:08]} c5 {[%emt 0:00:03]} 2. Nf3 {[%emt 0:00:07]} e6 {[%emt 0:00:04]} 3. d4 {[%emt 0:00:11]} cxd4 {[%emt 0:00:07]} 4. Nxd4 {[%emt 0:00:08]} a6 {[%emt 0:00:04]} 5. Nc3 {[%emt 0:00:36]} Qc7 {[%emt 0:00:07]} 6. Bd3 {[%emt 0:00:37]} Nf6 {[%emt 0:00:54]} 7. Qe2 {[%emt 0:00:54]} d6 {[%emt 0:00:08]} 8. g4 {[%emt 0:05:59] B43: Sicilian: Kan Variation: 5 Nc3.} g6 {[%emt 0:18:37] [#]} 9. f3 $146 {[%emt 0:04:32]} ({Predecessor:} 9. g5 Nh5 10. Bd2 Bg7 11. Nf5 Be5 12. Nh6 Nc6 13. Qg4 b5 14. a3 Rf8 15. f4 Nxf4 16. Bxf4 Bxc3+ 17. bxc3 {0-1 (42) Fercec,N (2445)-Damljanovic,B (2470) Djenovici 2019}) 9... Bg7 {[%emt 0:00:55][%cal Of6g4]} 10. Be3 {[%emt 0:01:34] White is slightly better.} Nbd7 {[%emt 0:00:56]} 11. O-O-O {[%emt 0:02:08]} Ne5 {[%emt 0:14:05] [#]} (11... b5 $11 {was preferrable.}) 12. Kb1 {[%emt 0:06:02]} (12. Bb5+ $1 $14 {deserves consideration.} axb5 13. Ndxb5) 12... Bd7 {[%emt 0:03:15]} (12... O-O $11 {remains equal.}) 13. h4 {[%emt 0:18:31][%cal Bh2h4,Bh4h5,Bh5h6][%mdl 32]} b5 {[%emt 0:09:08]} 14. Qh2 {[%emt 0:15:15]} ({White should play} 14. a3 $14) 14... Nc4 $2 {[%emt 0:10:41]} (14... Nxd3 $11 15. cxd3 b4) 15. Bxc4 $18 {[%emt 0:02:04]} bxc4 {[%emt 0:00:07]} 16. Nde2 {[%emt 0:00:57]} Ke7 {[%emt 0:39:19]} 17. Bf4 {[%emt 0:39:17][%cal Rf4d6]} Ne8 {[%emt 0:00:00]} 18. h5 {[%emt 0:00:00][%cal Oe4e5]} Rb8 {[%emt 0:00:00]} 19. Qh4+ {[%emt 0:01:00]} Kf8 {[%emt 0:00:00]} 20. h6 $36 {[%emt 0:00:00][%mdl 2048] Black is under strong pressure.} Be5 {[%emt 0:00:00]} 21. Bc1 {[%emt 0:00:00]} ({Better is} 21. Bxe5 $18 dxe5 22. Qf2 (22. b3 Bc6 $16)) 21... Qa5 {[%emt 0:00:00]} (21... Rg8 $142) 22. Qe1 $16 {[%emt 0:00:00]} Qb6 {[%emt 0:00:00]} (22... Nc7 $16 {was called for.}) 23. f4 {[%emt 0:00:00]} Bf6 {[%emt 0:00:00]} 24. Rf1 {[%emt 0:00:00]} Nc7 $2 {[%emt 0:00:00]} (24... Bxc3 {might work better.} 25. Nxc3 (25. Qxc3 Rg8 $18) 25... Qb4) 25. e5 $18 {[%emt 0:00:00]} Be7 {[%emt 0:00:00]} 26. exd6 {[%emt 0:00:00]} Bxd6 {[%emt 0:00:00]} 27. Ne4 {[%emt 0:00:00]} Bb4 {[%emt 0:00:44]} (27... Nd5 $2 28. Nxd6 Qxd6 29. Nc3 $18) 28. c3 {[%emt 0:00:00]} Bc6 {[%emt 0:01:54]} 29. N2g3 {[%emt 0:00:00]} Be7 {[%emt 0:00:20]} 30. Ka1 {[%emt 0:00:00]} Nd5 {[%emt 0:00:35]} (30... Ba4 {was necessary.}) 31. f5 {[%emt 0:00:00] [#] Strongly threatening fxe6.} Bd7 {[%emt 0:01:42]} 32. Qe2 {[%emt 0:00:17]} Qb5 {[%emt 0:01:23]} (32... Rb7 $142 33. Bg5 (33. Qxc4 Ne3 $11) 33... Ba4) 33. Qf2 {[%emt 0:01:29] Threatens to win with fxg6.} Rb6 {[%emt 0:00:32]} (33... gxf5 $142 34. gxf5 (34. Qd4 Rg8 $16) 34... Rg8 35. fxe6 Bxe6) 34. fxg6 {[%emt 0:00:27][%csl Gf1,Gg6][%cal Rf2f7]} Ke8 {[%emt 0:01:50]} 35. g7 {[%emt 0:00:38]} Rg8 {[%emt 0:00:00]} 36. Qxf7+ {[%emt 0:00:10]} Kd8 {[%emt 0:00:00]} 37. Qxg8+ {[%emt 0:00:31]} Kc7 {[%emt 0:01:30]} 38. Qf7 {[%emt 0:00:59]} Ba3 {[%emt 0:00:00]} 39. Rf2 {[%emt 0:01:11]} Qa4 {[%emt 0:00:00]} 40. Re1 {[%emt 0:01:52]} (40. Rxd5 $142 exd5 41. g8=Q Qd1 42. Qf4+ Rd6 43. bxa3 dxe4 44. Qxc4+ Kb7 45. Qfxe4+ Kb6 46. Qb1+ Bb5 47. Be3+ Kb7 48. Rf7+ Rd7 49. Qxd1 Kb8 50. Rf8+ Rd8 51. Rxd8+ Kb7 52. Qc8#) 40... Bd6 {[%emt 0:00:50]} 41. g8=Q {[%emt 0:31:28]} Be5 {[%emt 0:05:11]} 42. Nc5 {[%emt 0:00:00] Weighted Error Value: White=0.40/Black=0.88} 1-0

[Event "39th Muensterland Open 2022"]
[Site "Muenster"]
[Date "2022.10.02"]
[Round "2.1"]
[White "Holtel, Jasper"]
[Black "Winterberg, Andreas"]
[Result "0-1"]
[ECO "E05"]
[WhiteElo "2406"]
[BlackElo "1991"]
[Annotator "TA"]
[PlyCount "104"]
[EventDate "2022.10.01"]
[EventType "swiss"]
[EventCountry "GER"]
[SourceTitle "playchess.com"]
[Source "ChessBase"]
[SourceQuality "1"]
[TimeControl "40/5400+30:1800+30"]

{[%evp 21,104,6,4,6,11,0,34,27,32,24,38,24,48,43,47,0,78,82,110,120,123,112,141,98,138,123,139,122,137,143,135,118,139,142,300,302,388,27,0,0,0,0,0,-8,46,57,59,0,16,-198,-212,-527,-5,-32,-15,-696,-675,-658,-566,-830,-831,-820,-817,-787,-771,-710,-849,-1234,-1226,-1056,-993,-1488,-1302,-1853,-1210,-29975,-29976,-29974,-29972,-29985,-29986,-29986,-29987,-29987,-29986]} 1. Nf3 {[%emt 0:00:03]} d5 {[%emt 0:00:09]} 2. g3 {[%emt 0:00:05]} Nf6 {[%emt 0:00:25]} 3. Bg2 {[%emt 0:00:07]} e6 {[%emt 0:00:53]} 4. O-O {[%emt 0:00:57]} Be7 {[%emt 0:00:20]} 5. d4 {[%emt 0:03:09]} O-O {[%emt 0:00:40]} 6. c4 {[%emt 0:00:06]} dxc4 {[%emt 0:00:36]} 7. Qc2 {[%emt 0:00:08]} a6 {[%emt 0:00:58]} 8. a4 {[%emt 0:00:09]} Bd7 {[%emt 0:09:04]} 9. Qxc4 {[%emt 0:00:28]} Bc6 {[%emt 0:02:40]} 10. Bg5 {[%emt 0:00:43]} Nbd7 {[%emt 0:03:18][%cal Bb8d7,Bd7f6,Bf6e4][%mdl 32]} 11. Nc3 {[%emt 0:01:28]} h6 {[%emt 0:03:14]} 12. Bxf6 {[%emt 0:00:13] E05: Open Catalan: 5 Nf3 Be7.} Nxf6 {[%emt 0:00:24]} 13. Rfe1 {[%emt 0:02:24] 13.Rfd1 is setting a new trend.} Ne4 {[%emt 0:09:30]} 14. Qd3 {[%emt 0:03:03] White is slightly better.} Nxc3 {[%emt 0:03:07]} 15. bxc3 {[%emt 0:01:34][%cal Bb2c3,Bc3c4,Bc4c5][%mdl 32]} Bf6 {[%emt 0:10:07]} 16. e4 {[%emt 0:01:52] [#]} e5 $146 {[%emt 0:02:06]} ({Predecessor:} 16... b5 17. e5 Be7 18. Ng5 hxg5 19. Bxc6 Rb8 20. axb5 axb5 21. Bxb5 c5 22. Bc4 cxd4 23. cxd4 {1-0 (66) Hamblok,R (2261)-Havanecz,B (2281) Budapest 2019}) 17. d5 {[%emt 0:23:19]} Bd7 {[%emt 0:07:39]} 18. Reb1 {[%emt 0:06:05]} (18. c4 $14 {is more appropriate.}) 18... Qc8 {[%emt 0:04:13]} (18... b5 $11 {keeps the balance.}) 19. c4 {[%emt 0:03:48]} g6 {[%emt 0:06:22]} 20. c5 {[%emt 0:09:05]} Bg7 {[%emt 0:02:40]} 21. Nd2 {[%emt 0:04:31]} Kh7 {[%emt 0:04:57]} 22. Qc2 {[%emt 0:05:11]} Rb8 {[%emt 0:06:42]} 23. Ra2 {[%emt 0:01:08]} Qe8 {[%emt 0:03:19]} 24. Bf1 {[%emt 0:32:54]} f5 {[%emt 0:02:06]} 25. Bd3 {[%emt 0:00:00]} f4 {[%emt 0:05:21] [#]} 26. a5 $1 {[%emt 0:00:00]} fxg3 {[%emt 0:01:17]} 27. hxg3 {[%emt 0:00:00]} Rf6 $2 {[%emt 0:06:04]} (27... Qd8 $16 28. Rab2 Bc8) 28. Rab2 $18 {[%emt 0:00:00]} Qf7 {[%emt 0:00:53]} 29. Nf1 $2 {[%emt 0:00:00]} (29. c6 $18 Bxc6 30. dxc6 Rxc6 31. Qxc6 bxc6 32. Rxb8) 29... Rf8 $11 {[%emt 0:00:56]} 30. Qe2 {[%emt 0:00:00]} h5 {[%emt 0:02:04][%cal Oh5h4]} 31. Rc2 {[%emt 0:00:00]} Bc8 {[%emt 0:00:36]} 32. Rbb2 {[%emt 0:00:00]} h4 {[%emt 0:01:07]} (32... Qd7 $11) 33. c6 $1 $14 {[%emt 0:00:00]} bxc6 {[%emt 0:00:16]} 34. Rxc6 {[%emt 0:00:00]} ({White should play} 34. Bxa6 $14 Bd7 35. dxc6 (35. gxh4 Qe7 $11)) 34... hxg3 {[%emt 0:01:34]} 35. fxg3 {[%emt 0:03:22] [#]} (35. Rxf6 $11 Bxf6 36. Nxg3 (36. fxg3 Be7 $11)) 35... Rf3 $1 $19 {[%emt 0:01:25] ...Bh3 is the strong threat.} 36. Qd1 $2 {[%emt 0:00:49]} (36. Kg2 {is tougher.} Bg4 37. Bxa6 Rxg3+ 38. Nxg3 Bxe2 39. Bxe2) 36... Bh6 $2 {[%emt 0:00:31]} ({Black should try} 36... Bh3 $19 {[%cal Rh3f1]} 37. Rc1 Bh6) 37. Rh2 {[%emt 0:00:23]} Kg7 {[%emt 0:00:41] Hoping for ...Bg4. Really sharp!} ({Much less strong is} 37... Rf2 38. Qe1 Rxh2 39. Nxh2 $16) 38. Rxh6 $2 {[%emt 0:01:46][%mdl 8192]} Kxh6 {[%emt 0:00:29]} 39. Qc1+ {[%emt 0:00:17]} Kg7 {[%emt 0:00:35][%cal Of3g3]} 40. Rxc7 {[%emt 0:00:25]} Bd7 {[%emt 0:00:22][%cal Of3g3]} 41. Be2 {[%emt 0:05:48] [#]} Rc3 $3 {[%emt 0:16:39][%mdl 512] ( -> ...Qf2+)} 42. Rxd7 {[%emt 0:03:43]} Rxc1 {[%emt 0:00:07]} 43. Rxf7+ {[%emt 0:00:09]} Rxf7 {[%emt 0:00:21]} 44. Bxa6 {[%emt 0:00:09]} Ra7 {[%emt 0:00:23]} 45. Be2 {[%emt 0:01:41]} Rxa5 {[%emt 0:00:17] And now ...Ra2 would win.} 46. Bg4 {[%emt 0:03:08]} Ra4 {[%emt 0:01:49]} 47. Bf3 {[%emt 0:00:25]} Ra3 {[%emt 0:01:48]} 48. Bg2 {[%emt 0:00:08]} Rxg3 {[%emt 0:01:13] Black mates.} 49. Kf2 {[%emt 0:00:13]} Ra3 {[%emt 0:00:30]} 50. Ne3 {[%emt 0:00:39]} Ra2+ {[%emt 0:00:25]} 51. Kf3 {[%emt 0:00:08]} Rc3 {[%emt 0:00:13]} 52. d6 {[%emt 0:00:10] [#]} Rxg2 $1 {[%emt 0:00:50] Black used his chance.  Weighted Error Value: White=0.93/Black=0.29 (precise)} 0-1

[Event "39th Muensterland Open 2022"]
[Site "Muenster"]
[Date "2022.10.02"]
[Round "2.2"]
[White "Reuter, Julian-Frank"]
[Black "Koellner, Ruben Gideon"]
[Result "0-1"]
[ECO "D02"]
[WhiteElo "1963"]
[BlackElo "2401"]
[Annotator "TA"]
[PlyCount "80"]
[EventDate "2022.10.01"]
[EventType "swiss"]
[EventCountry "GER"]
[SourceTitle "playchess.com"]
[Source "ChessBase"]
[SourceQuality "1"]
[TimeControl "40/5400+30:1800+30"]

{[%evp 9,80,30,43,29,31,14,25,14,22,8,13,-26,21,-20,-7,-14,-8,-17,-22,-34,-35,-24,0,-13,-6,-5,0,0,0,0,0,0,0,-13,-7,-19,-9,-9,8,-11,0,-52,-54,-49,-54,-62,-20,-42,-35,-38,-48,-51,-51,-64,-64,-68,-65,-64,-70,-91,-101,-302,-308,-276,-245,-829,-822,-814,-811,-808,-804,-806,-785]} 1. Nf3 {[%emt 0:00:04]} d5 {[%emt 0:00:22]} 2. g3 {[%emt 0:00:09]} Nd7 {[%emt 0:00:07]} 3. d4 {[%emt 0:00:09]} Nb6 {[%emt 0:00:24]} 4. Bg2 {[%emt 0:00:32]} Bf5 {[%emt 0:00:07]} 5. O-O {[%emt 0:02:19]} e6 {[%emt 0:00:10]} 6. Nbd2 {[%emt 0:07:35][%cal Oc2c4] D02: 1 d4 d5 2 Nf3 sidelines, including 2...Nf6 3 g3 and 2...Nf6 3 Bf4.} c6 {[%emt 0:03:31]} 7. Re1 {[%emt 0:12:33]} Nf6 {[%emt 0:00:36] [#]} 8. Nh4 $146 {[%emt 0:02:46] White has an edge.} ({Predecessor:} 8. c3 Be7 9. Ne5 Bd6 10. Ndf3 Qc7 11. Nd3 Nbd7 12. Bf4 Bxf4 13. Nxf4 O-O 14. Nd3 {½-½ (22) Groiss,W-Zinn,L Zittau 1957}) 8... Bg4 {[%emt 0:00:08][%cal Bf5g4,Bg4h5,Bh5g6][%mdl 32]} 9. h3 {[%emt 0:00:19]} Bh5 {[%emt 0:00:05]} 10. g4 {[%emt 0:00:38]} Nfd7 {[%emt 0:01:48]} (10... Ne4 $142) 11. Nhf3 {[%emt 0:01:57]} (11. Ndf3 $5 {[%cal Rg4h5]}) 11... Bg6 {[%emt 0:00:06]} 12. e4 {[%emt 0:02:04]} Be7 {[%emt 0:00:13]} 13. exd5 {[%emt 0:10:56]} cxd5 {[%emt 0:01:32]} 14. Nf1 {[%emt 0:07:23]} Qc7 {[%emt 0:01:31]} 15. c3 {[%emt 0:00:05]} Nc4 {[%emt 0:00:29]} 16. Ne3 {[%emt 0:02:35]} Nxe3 {[%emt 0:17:42]} 17. Bxe3 {[%emt 0:00:56]} O-O {[%emt 0:00:22]} 18. Qd2 {[%emt 0:01:33]} b5 {[%emt 0:04:38]} 19. Bf4 {[%emt 0:00:50]} Qb6 {[%emt 0:02:00]} 20. a3 {[%emt 0:01:54]} a5 {[%emt 0:00:44]} 21. Rec1 {[%emt 0:01:44]} Rfc8 {[%emt 0:03:14]} 22. Ne1 {[%emt 0:07:58]} Qb7 {[%emt 0:03:17]} 23. Qe2 {[%emt 0:03:58]} Ra6 {[%emt 0:08:34]} 24. Nd3 {[%emt 0:11:48]} Rac6 {[%emt 0:00:59]} 25. Ne5 {[%emt 0:03:23]} ({White should try} 25. Bf1 $11) 25... Nxe5 $15 {[%emt 0:01:24]} 26. Bxe5 {[%emt 0:02:26]} h6 {[%emt 0:06:25]} 27. Bf4 {[%emt 0:00:29]} Bf8 {[%emt 0:02:51]} 28. Ra2 {[%emt 0:02:01]} Qb6 {[%emt 0:08:15]} 29. Bf1 {[%emt 0:04:05]} b4 {[%emt 0:00:20]} 30. axb4 {[%emt 0:00:03]} axb4 {[%emt 0:00:07][%cal Ba5b4,Bb4b3][%mdl 32]} 31. Ra6 {[%emt 0:02:22]} Qxa6 {[%emt 0:06:13]} 32. Qxa6 {[%emt 0:00:02]} Rxa6 {[%emt 0:00:06]} 33. Bxa6 {[%emt 0:00:02]} Ra8 {[%emt 0:00:13]} 34. Bf1 {[%emt 0:00:39]} b3 {[%emt 0:07:42] Strongly threatening ...Ra2.} 35. Re1 $2 {[%emt 0:02:50] This costs White the game.} (35. c4 $17) 35... Ra2 $19 {[%emt 0:00:55]} 36. Bc1 {[%emt 0:00:12]} Ra1 {[%emt 0:00:13][%cal Of8a3] White must now prevent ...Ba3!} 37. Bg2 $2 {[%emt 0:07:07] [#]} (37. Bb5) 37... Ba3 $1 {[%emt 0:02:58][%mdl 512] Black is clearly winning.} 38. bxa3 {[%emt 0:00:30]} b2 {[%emt 0:00:11]} 39. Bxb2 {[%emt 0:00:03]} Rxe1+ {[%emt 0:00:06]} 40. Kh2 {[%emt 0:00:03]} Rb1 {[%emt 0:00:09] Weighted Error Value: White=0.40/Black=0.06 (flawless)} 0-1

[Event "39th Muensterland Open 2022"]
[Site "Muenster"]
[Date "2022.10.02"]
[Round "2.3"]
[White "Pfreundt, Jakob"]
[Black "Berkes, Alexander"]
[Result "1-0"]
[ECO "A57"]
[WhiteElo "2401"]
[BlackElo "1968"]
[Annotator "TA"]
[PlyCount "51"]
[EventDate "2022.10.01"]
[EventType "swiss"]
[EventCountry "GER"]
[SourceTitle "playchess.com"]
[Source "ChessBase"]
[SourceQuality "1"]
[TimeControl "40/5400+30:1800+30"]

{[%evp 9,51,35,41,0,4,23,21,0,0,3,-9,-2,-4,-13,-10,-16,-11,-8,-6,-6,111,111,135,111,117,107,123,116,231,206,203,200,536,458,533,526,519,514,536,506,29995,29996,29996,29997]} 1. d4 {[%emt 0:04:40]} Nf6 {[%emt 0:00:14]} 2. c4 {[%emt 0:00:44]} c5 {[%emt 0:00:29]} 3. d5 {[%emt 0:00:40]} b5 {[%emt 0:00:55]} 4. Qc2 {[%emt 0:03:58]} b4 {[%emt 0:01:01]} 5. e4 {[%emt 0:01:34]} d6 {[%emt 0:00:36]} 6. f4 {[%emt 0:06:04] A57: Benko/Volga Gambit.} g6 {[%emt 0:09:11]} 7. Nf3 {[%emt 0:04:42]} Bg7 {[%emt 0:01:19]} 8. Bd3 {[%emt 0:05:09] The position is equal.} (8. e5 $5 {[%cal Re5f6]} Nh5 9. Be3 $11) 8... O-O {[%emt 0:08:57]} 9. h3 {[%emt 0:08:26]} a5 {[%emt 0:19:50]} 10. O-O {[%emt 0:23:28]} e6 {[%emt 0:14:37]} 11. e5 {[%emt 0:13:47] [#]} dxe5 $146 {[%emt 0:05:00]} ({Predecessor:} 11... Ne8 12. Nbd2 dxe5 13. Nxe5 exd5 14. cxd5 Nd6 15. Ndc4 Nxc4 16. Bxc4 Bf5 17. Qe2 Qd6 {½-½ (49) Duttagupta,A (2114)-Slawomir,W (2151) FICGS email 2020}) 12. fxe5 {[%emt 0:00:08]} Nfd7 {[%emt 0:02:13]} 13. Bg5 $36 {[%emt 0:02:39][%mdl 2048] Black is under pressure.} Qb6 {[%emt 0:02:38] White should prevent ...exd5.} 14. dxe6 {[%emt 0:06:54]} (14. Be4 {feels hotter.} Bb7 15. Nbd2 exd5 16. cxd5 Nxe5 17. Nxe5 Bxe5 18. Nc4) 14... Nxe5 {[%emt 0:03:26]} (14... Qxe6 $11 {keeps the balance.} 15. Be4 Ra6) 15. Nxe5 $16 {[%emt 0:00:56]} Bxe5 {[%emt 0:00:13] [#]} 16. exf7+ {[%emt 0:01:47]} Rxf7 {[%emt 0:01:46]} 17. Rxf7 {[%emt 0:00:09]} Kxf7 {[%emt 0:00:16]} 18. Nd2 {[%emt 0:00:16] Hoping for Nf3.} Nc6 {[%emt 0:06:03]} (18... Bb7 $16) 19. Rf1+ {[%emt 0:01:09]} ({Don't do} 19. Be4 $6 Kg7 $16) 19... Kg7 {[%emt 0:00:27] [#]} 20. Nf3 {[%emt 0:03:14]} (20. Be4 Nd4 21. Qd3 Rb8) 20... Bd4+ {[%emt 0:08:08]} (20... Nd4 21. Qf2 Bf6) 21. Nxd4 $18 {[%emt 0:00:24]} Nxd4 {[%emt 0:00:23]} 22. Qf2 {[%emt 0:00:55][%csl Gf1][%cal Rf2f8]} Bf5 {[%emt 0:04:06] [#]} 23. g4 $1 {[%emt 0:03:12]} h6 {[%emt 0:03:05]} (23... Re8 24. gxf5) 24. Bf4 {[%emt 0:00:50]} Be6 {[%emt 0:02:38]} (24... Re8 $18 25. Be3 Qf6 26. gxf5 g5) 25. Be5+ {[%emt 0:00:31] This bishop pair is nice.} Kh7 {[%emt 0:00:45] [#]} 26. Bxg6+ $1 {[%emt 0:00:09][%mdl 512] Weighted Error Value: White=0.07 (flawless) /Black=0.68} 1-0